Workbook

Sheet Informatie over werknemers
A2: Informatie over werknemers
A3: [Bedrijfsnaam]
A4: Werknemer-ID | B4: Naam werknemer | C4: Uurloon | D4: Fiscale status | E4: Overheidstoelage (W4) | F4: Provinciale belasting | G4: Inkomstenbelasting (percentage, gebaseerd op overheidstoelage) | H4: Sociale zekerheidsbelasting | I4: Medicare, Amerikaanse ziektekostenverzekering | J4: Totaal ingehouden belasting | K4: Verzekeringsaftrek | L4: Andere gewone aftrek | M4: Totale reguliere aftrek (exclusief belastingen)
A5: 1 | B5: Jesper Aaberg | C5: € 10.00 | D5: 1 | E5: 4 | F5: 2.30% | G5: 28.00% | H5: 6.30% | I5: 1.45% | J5: =Tabel1[[#This Row],[Provinciale belasting]]+Tabel1[[#This Row],[Inkomstenbelasting (percentage, gebaseerd op overheidstoelage)]]+Tabel1[[#This Row],[Sociale zekerheidsbelasting]]+Tabel1[[#This Row],[Medicare, Amerikaanse ziektekostenverzekering]] -> 38.05% | K5: € 20.00 | L5: € 40.00 | M5: =Tabel1[[#This Row],[Verzekeringsaftrek]]+Tabel1[[#This Row],[Andere gewone aftrek]] -> € 60.00
A6: 2 | B6: Wilson Pais | C6: € 13.00 | D6: 1 | E6: 4 | F6: 2.30% | G6: 28.00% | H6: 6.30% | I6: 1.45% | J6: =Tabel1[[#This Row],[Provinciale belasting]]+Tabel1[[#This Row],[Inkomstenbelasting (percentage, gebaseerd op overheidstoelage)]]+Tabel1[[#This Row],[Sociale zekerheidsbelasting]]+Tabel1[[#This Row],[Medicare, Amerikaanse ziektekostenverzekering]] -> 38.05% | K6: € 20.00 | L6: € 52.00 | M6: =Tabel1[[#This Row],[Verzekeringsaftrek]]+Tabel1[[#This Row],[Andere gewone aftrek]] -> € 72.00
A7: 3 | B7: Kathie Flood | C7: € 10.00 | D7: 1 | E7: 4 | F7: 2.30% | G7: 28.00% | H7: 6.30% | I7: 1.45% | J7: =Tabel1[[#This Row],[Provinciale belasting]]+Tabel1[[#This Row],[Inkomstenbelasting (percentage, gebaseerd op overheidstoelage)]]+Tabel1[[#This Row],[Sociale zekerheidsbelasting]]+Tabel1[[#This Row],[Medicare, Amerikaanse ziektekostenverzekering]] -> 38.05% | K7: € 20.00 | L7: 0 | M7: =Tabel1[[#This Row],[Verzekeringsaftrek]]+Tabel1[[#This Row],[Andere gewone aftrek]] -> € 20.00

Sheet Loonkostencalculator
A1: Loonkostencalculator
J2: Periode eindigend op: | K2: 4568800.00%
A3: ='Informatie over werknemers'!$A$3 -> [Bedrijfsnaam]
A4: Werknemer-ID | B4: Naam werknemer | C4: Normale gewerkte uren | D4: Vakantie-uren | E4: Ziekteverlof | F4: Overuren | G4: Overurentarief | H4: Brutosalaris | I4: Belastingen en inhoudingen | J4: Overige inhoudingen | K4: Nettosalaris
A5: 1 | B5: =VLOOKUP(A5,Tabel1[],2,FALSE) -> Jesper Aaberg | C5: 50.00 | D5: 5.00 | E5: 1.00 | H5: =(VLOOKUP(A5,Tabel1[],3,FALSE)*(Tabel2[[#This Row],[Normale gewerkte uren]]+Tabel2[[#This Row],[Vakantie-uren]]+Tabel2[[#This Row],[Ziekteverlof]])+Tabel2[[#This Row],[Overuren]]*Tabel2[[#This Row],[Overurentarief]]) -> € 560.00 | I5: =VLOOKUP(A5,Tabel1[],10,FALSE)*Tabel2[[#This Row],[Brutosalaris]]+Tabel1[[#This Row],[Totale reguliere aftrek (exclusief belastingen)]] -> € 273.08 | J5: € 20.00 | K5: =Tabel2[[#This Row],[Brutosalaris]]-Tabel2[[#This Row],[Belastingen en inhoudingen ]]-Tabel2[[#This Row],[Overige inhoudingen]] -> € 266.92
A6: 2 | B6: =VLOOKUP(A6,Tabel1[],2,FALSE) -> Wilson Pais | C6: 40.00 | D6: 0.00 | E6: 0.00 | H6: =(VLOOKUP(A6,Tabel1[],3,FALSE)*(Tabel2[[#This Row],[Normale gewerkte uren]]+Tabel2[[#This Row],[Vakantie-uren]]+Tabel2[[#This Row],[Ziekteverlof]])+Tabel2[[#This Row],[Overuren]]*Tabel2[[#This Row],[Overurentarief]]) -> € 520.00 | I6: =VLOOKUP(A6,Tabel1[],10,FALSE)*Tabel2[[#This Row],[Brutosalaris]]+Tabel1[[#This Row],[Totale reguliere aftrek (exclusief belastingen)]] -> € 269.86 | J6: € 52.00 | K6: =Tabel2[[#This Row],[Brutosalaris]]-Tabel2[[#This Row],[Belastingen en inhoudingen ]]-Tabel2[[#This Row],[Overige inhoudingen]] -> € 198.14
A7: 3 | B7: =VLOOKUP(A7,Tabel1[],2,FALSE) -> Kathie Flood | C7: 52.00 | D7: 0.00 | E7: 0.00 | F7: 2.00 | G7: € 20.00 | H7: =(VLOOKUP(A7,Tabel1[],3,FALSE)*(Tabel2[[#This Row],[Normale gewerkte uren]]+Tabel2[[#This Row],[Vakantie-uren]]+Tabel2[[#This Row],[Ziekteverlof]])+Tabel2[[#This Row],[Overuren]]*Tabel2[[#This Row],[Overurentarief]]) -> € 560.00 | I7: =VLOOKUP(A7,Tabel1[],10,FALSE)*Tabel2[[#This Row],[Brutosalaris]]+Tabel1[[#This Row],[Totale reguliere aftrek (exclusief belastingen)]] -> € 233.08 | J7: € 20.00 | K7: =Tabel2[[#This Row],[Brutosalaris]]-Tabel2[[#This Row],[Belastingen en inhoudingen ]]-Tabel2[[#This Row],[Overige inhoudingen]] -> € 306.92

Sheet Afzonderlijke loonstrookjes
C2: =('Informatie over werknemers'!$A$3) -> [Bedrijfsnaam]
C3: Periode: | D3: =Loonkostencalculator!$K$2 -> 4568800.00% | E3: Naam werknemer | F3: =IFERROR(VLOOKUP(H3,Tabel1[],2),"") -> Jesper Aaberg | G3: Werknemer-ID | H3: 1
C5: Fiscale status | D5: =IFERROR(VLOOKUP(H3,Tabel1[],4),"") -> 1 | E5: Federale toelage (uit W-4) | F5: =IFERROR(VLOOKUP(H3,Tabel1[],5,FALSE),"") -> 4 | G5: Gewerkte uren | H5: =IFERROR(VLOOKUP(H3,Tabel2[],3,FALSE),"") -> 50
C6: Uurtarief | D6: =IFERROR(VLOOKUP(H3,Tabel1[],3,FALSE),"") -> € 10.00 | E6: Overurentarief | F6: =IFERROR(VLOOKUP(H3,Tabel2[],7,FALSE),"") -> 0 | G6: Ziekteverlof | H6: =IFERROR(VLOOKUP(H3,Tabel2[],5,FALSE),"") -> 1
C7: Sociale zekerheidsbelasting | D7: =IFERROR(IFERROR(VLOOKUP(H3,Tabel1[],8,FALSE),"")*H9,"") -> € 35.28 | E7: Federale inkomensbelasting | F7: =IFERROR(IFERROR(VLOOKUP(H3,Tabel1[],7,FALSE),"")*H9,"") -> € 156.80 | G7: Vakantie-uren | H7: =IFERROR(VLOOKUP(H3,Tabel2[],4,FALSE),"") -> 5
C8: Zorgverzekeringsbelasting | D8: =IFERROR(IFERROR(VLOOKUP(H3,Tabel1[],9,FALSE),"")*H9,"") -> € 8.12 | E8: Provinciale belasting | F8: =IFERROR(IFERROR(VLOOKUP(H3,Tabel1[],6,FALSE),"")*H9,"") -> € 12.88 | G8: Overuren | H8: =IFERROR(VLOOKUP(H3,Tabel2[],6,FALSE),"") -> 0
C9: Ingehouden verzekeringen | D9: =IFERROR(VLOOKUP(H3,Tabel1[],11,FALSE),"") -> € 20.00 | E9: Andere gewone inhoudingen | F9: =IFERROR(VLOOKUP(H3,Tabel1[],12,FALSE),"") -> € 40.00 | G9: Brutosalaris | H9: =IFERROR(VLOOKUP(H3,Tabel2[],8,FALSE),"") -> € 560.00
C10: Totaal van belastingen en normale inhoudingen | D10: =IFERROR(SUM(F7:F9)+SUM(D7:D9),"") -> € 273.08 | E10: Overige inhoudingen | F10: =IFERROR(VLOOKUP(H3,Tabel2[],10,FALSE),"") -> € 20.00 | G10: Totaal van belastingen en inhoudingen | H10: =IFERROR(IFERROR(VLOOKUP(H3,Tabel2[],9,FALSE),"")+F10,"") -> € 293.08
G11: Nettosalaris | H11: =IFERROR(VLOOKUP(H3,Tabel2[],11,FALSE),"") -> € 266.92
C14: =('Informatie over werknemers'!$A$3) -> [Bedrijfsnaam]
C15: Periode: | D15: =Loonkostencalculator!$K$2 -> 4568800.00% | E15: Naam werknemer | F15: =IFERROR(VLOOKUP(H15,Tabel1[],2),"") -> Wilson Pais | G15: Werknemer-ID | H15: 2
C17: Fiscale status | D17: =IFERROR(VLOOKUP(H15,Tabel1[],4),"") -> 1 | E17: Federale toelage (uit W-4) | F17: =IFERROR(VLOOKUP(H15,Tabel1[],5,FALSE),"") -> 4 | G17: Gewerkte uren | H17: =IFERROR(VLOOKUP(H15,Tabel2[],3,FALSE),"") -> 40
C18: Uurtarief | D18: =IFERROR(VLOOKUP(H15,Tabel1[],3,FALSE),"") -> € 13.00 | E18: Overurentarief | F18: =IFERROR(VLOOKUP(H15,Tabel2[],7,FALSE),"") -> 0 | G18: Ziekteverlof | H18: =IFERROR(VLOOKUP(H15,Tabel2[],5,FALSE),"") -> 0
C19: Sociale zekerheidsbelasting | D19: =IFERROR(IFERROR(VLOOKUP(H15,Tabel1[],8,FALSE),"")*H21,"") -> € 32.76 | E19: Federale inkomensbelasting | F19: =IFERROR(IFERROR(VLOOKUP(H15,Tabel1[],7,FALSE),"")*H21,"") -> € 145.60 | G19: Vakantie-uren | H19: =IFERROR(VLOOKUP(H15,Tabel2[],4,FALSE),"") -> 0
C20: Zorgverzekeringsbelasting | D20: =IFERROR(IFERROR(VLOOKUP(H15,Tabel1[],9,FALSE),"")*H21,"") -> € 7.54 | E20: Provinciale belasting | F20: =IFERROR(IFERROR(VLOOKUP(H15,Tabel1[],6,FALSE),"")*H21,"") -> € 11.96 | G20: Overuren | H20: =IFERROR(VLOOKUP(H15,Tabel2[],6,FALSE),"") -> 0
C21: Ingehouden verzekeringen | D21: =IFERROR(VLOOKUP(H15,Tabel1[],11,FALSE),"") -> € 20.00 | E21: Andere gewone inhoudingen | F21: =IFERROR(VLOOKUP(H15,Tabel1[],12,FALSE),"") -> € 52.00 | G21: Brutosalaris | H21: =IFERROR(VLOOKUP(H15,Tabel2[],8,FALSE),"") -> € 520.00
C22: Totaal van belastingen en normale inhoudingen | D22: =IFERROR(SUM(F19:F21)+SUM(D19:D21),"") -> € 269.86 | E22: Overige inhoudingen | F22: =IFERROR(VLOOKUP(H15,Tabel2[],10,FALSE),"") -> € 52.00 | G22: Totaal van belastingen en inhoudingen | H22: =IFERROR(IFERROR(VLOOKUP(H15,Tabel2[],9,FALSE),"")+F22,"") -> € 321.86
G23: Nettosalaris | H23: =IFERROR(VLOOKUP(H15,Tabel2[],11,FALSE),"") -> € 198.14
C26: =('Informatie over werknemers'!$A$3) -> [Bedrijfsnaam]
C27: Periode: | D27: =Loonkostencalculator!$K$2 -> 4568800.00% | E27: Naam werknemer | F27: =IFERROR(VLOOKUP(H27,Tabel1[],2),"") -> Kathie Flood | G27: Werknemer-ID | H27: 3
C29: Fiscale status | D29: =IFERROR(VLOOKUP(H27,Tabel1[],4),"") -> 1 | E29: Federale toelage (uit W-4) | F29: =IFERROR(VLOOKUP(H27,Tabel1[],5,FALSE),"") -> 4 | G29: Gewerkte uren | H29: =IFERROR(VLOOKUP(H27,Tabel2[],3,FALSE),"") -> 52
C30: Uurtarief | D30: =IFERROR(VLOOKUP(H27,Tabel1[],3,FALSE),"") -> € 10.00 | E30: Overurentarief | F30: =IFERROR(VLOOKUP(H27,Tabel2[],7,FALSE),"") -> € 20.00 | G30: Ziekteverlof | H30: =IFERROR(VLOOKUP(H27,Tabel2[],5,FALSE),"") -> 0
C31: Sociale zekerheidsbelasting | D31: =IFERROR(IFERROR(VLOOKUP(H27,Tabel1[],8,FALSE),"")*H33,"") -> € 35.28 | E31: Federale inkomensbelasting | F31: =IFERROR(IFERROR(VLOOKUP(H27,Tabel1[],7,FALSE),"")*H33,"") -> € 156.80 | G31: Vakantie-uren | H31: =IFERROR(VLOOKUP(H27,Tabel2[],4,FALSE),"") -> 0
C32: Zorgverzekeringsbelasting | D32: =IFERROR(IFERROR(VLOOKUP(H27,Tabel1[],9,FALSE),"")*H33,"") -> € 8.12 | E32: Provinciale belasting | F32: =IFERROR(IFERROR(VLOOKUP(H27,Tabel1[],6,FALSE),"")*H33,"") -> € 12.88 | G32: Overuren | H32: =IFERROR(VLOOKUP(H27,Tabel2[],6,FALSE),"") -> 2
C33: Ingehouden verzekeringen | D33: =IFERROR(VLOOKUP(H27,Tabel1[],11,FALSE),"") -> € 20.00 | E33: Andere gewone inhoudingen | F33: =IFERROR(VLOOKUP(H27,Tabel1[],12,FALSE),"") -> 0 | G33: Brutosalaris | H33: =IFERROR(VLOOKUP(H27,Tabel2[],8,FALSE),"") -> € 560.00
C34: Totaal van belastingen en normale inhoudingen | D34: =IFERROR(SUM(F31:F33)+SUM(D31:D33),"") -> € 233.08 | E34: Overige inhoudingen | F34: =IFERROR(VLOOKUP(H27,Tabel2[],10,FALSE),"") -> € 20.00 | G34: Totaal van belastingen en inhoudingen | H34: =IFERROR(IFERROR(VLOOKUP(H27,Tabel2[],9,FALSE),"")+F34,"") -> € 253.08
G35: Nettosalaris | H35: =IFERROR(VLOOKUP(H27,Tabel2[],11,FALSE),"") -> € 306.92
C39: =('Informatie over werknemers'!$A$3) -> [Bedrijfsnaam]
C40: Periode: | D40: =Loonkostencalculator!$K$2 -> 4568800.00% | E40: Naam werknemer | F40: =IFERROR(VLOOKUP(H40,Tabel1[],2),"") ->  | G40: Werknemer-ID
C42: Fiscale status | D42: =IFERROR(VLOOKUP(H40,Tabel1[],4),"") ->  | E42: Federale toelage (uit W-4) | F42: =IFERROR(VLOOKUP(H40,Tabel1[],5,FALSE),"") ->  | G42: Gewerkte uren | H42: =IFERROR(VLOOKUP(H40,Tabel2[],3,FALSE),"") -> 
C43: Uurtarief | D43: =IFERROR(VLOOKUP(H40,Tabel1[],3,FALSE),"") ->  | E43: Overurentarief | F43: =IFERROR(VLOOKUP(H40,Tabel2[],7,FALSE),"") ->  | G43: Ziekteverlof | H43: =IFERROR(VLOOKUP(H40,Tabel2[],5,FALSE),"") -> 
C44: Sociale zekerheidsbelasting | D44: =IFERROR(IFERROR(VLOOKUP(H40,Tabel1[],8,FALSE),"")*H46,"") ->  | E44: Federale inkomensbelasting | F44: =IFERROR(IFERROR(VLOOKUP(H40,Tabel1[],7,FALSE),"")*H46,"") ->  | G44: Vakantie-uren | H44: =IFERROR(VLOOKUP(H40,Tabel2[],4,FALSE),"") -> 
C45: Zorgverzekeringsbelasting | D45: =IFERROR(IFERROR(VLOOKUP(H40,Tabel1[],9,FALSE),"")*H46,"") ->  | E45: Provinciale belasting | F45: =IFERROR(IFERROR(VLOOKUP(H40,Tabel1[],6,FALSE),"")*H46,"") ->  | G45: Overuren | H45: =IFERROR(VLOOKUP(H40,Tabel2[],6,FALSE),"") -> 
C46: Ingehouden verzekeringen | D46: =IFERROR(VLOOKUP(H40,Tabel1[],11,FALSE),"") ->  | E46: Andere gewone inhoudingen | F46: =IFERROR(VLOOKUP(H40,Tabel1[],12,FALSE),"") ->  | G46: Brutosalaris | H46: =IFERROR(VLOOKUP(H40,Tabel2[],8,FALSE),"") -> 
C47: Totaal van belastingen en normale inhoudingen | D47: =IFERROR(SUM(F44:F46)+SUM(D44:D46),"") -> 0 | E47: Overige inhoudingen | F47: =IFERROR(VLOOKUP(H40,Tabel2[],10,FALSE),"") ->  | G47: Totaal van belastingen en inhoudingen | H47: =IFERROR(IFERROR(VLOOKUP(H40,Tabel2[],9,FALSE),"")+F47,"") -> 
G48: Nettosalaris | H48: =IFERROR(VLOOKUP(H40,Tabel2[],11,FALSE),"") -> 
